fUST/lending_fUST_20241120
["ID","MTS","AMOUNT","RATE_DAILY","PERIOD"]
[342751221,1732102235537,-500.0,0.00022191,7]
[342751222,1732102235546,-500.0,0.00022191,7]
[342751223,1732102235555,-547.6,0.00022191,7]
[342751224,1732102235564,-500.0,0.00022191,7]
[342751225,1732102235573,-500.0,0.00022191,7]
[342751226,1732102235582,-500.0,0.00022191,7]
[342751227,1732102235591,-500.0,0.00022191,7]
[342751228,1732102235600,-500.0,0.00022191,7]
[342751229,1732102235609,-500.0,0.00022191,7]
[342751230,1732102235618,-178.10651042,0.00022191,7]
[342751231,1732102235627,-351.75,0.00022191,7]
[342751232,1732102235636,-500.0,0.00022191,7]
[342751233,1732102235645,-502.66849434,0.00022191,7]
[342751234,1732102235655,-500.0,0.00022191,7]
[342751235,1732102235664,-500.0,0.00022191,7]
[342751236,1732102235674,-500.0,0.00022191,7]
[342751237,1732102235683,-500.0,0.00022191,7]
[342751238,1732102235692,-500.0,0.00022191,7]
[342751239,1732102235701,-500.0,0.00022191,7]
[342751240,1732102235711,-500.0,0.00022191,7]
[342751241,1732102235720,-500.0,0.00022191,7]
[342751242,1732102235729,-507.8082641,0.00022191,7]
[342751243,1732102235739,-500.0,0.00022191,7]
[342751244,1732102235748,-500.0,0.00022191,7]
[342751245,1732102235757,-500.0,0.00022191,7]
[342751246,1732102235767,-500.0,0.00022191,7]
[342751247,1732102235776,-500.0,0.00022191,7]
[342751248,1732102235786,-500.0,0.00022191,7]
[342751249,1732102235795,-500.0,0.00022191,7]
[342751250,1732102235804,-542.39233487,0.00022191,7]
[342751251,1732102235814,-500.0,0.00022191,7]
[342751252,1732102235823,-427.15,0.00022191,7]
[342751253,1732102235832,-500.0,0.00022191,7]
[342751254,1732102235842,-500.0,0.00022191,7]
[342751255,1732102235851,-606.34803731,0.00022191,7]
[342751256,1732102235860,-229.52168503,0.00022191,7]
[342751257,1732102235870,-501.72982419,0.00022191,7]
[342751258,1732102235879,-500.0,0.00022191,7]
[342751259,1732102235889,-500.0,0.00022191,7]
[342751260,1732102235898,-500.0,0.00022191,7]
[342751261,1732102235908,-500.0,0.00022191,7]
[342751262,1732102235922,-500.0,0.00022191,7]
[342751263,1732102235931,-500.0,0.00022191,7]
[342751264,1732102235941,-316.90448881,0.00022191,7]
[342751265,1732102235951,-500.0,0.00022191,7]
[342751266,1732102235961,-463.808077,0.00022211,2]
[342751267,1732102235970,-500.0,0.00022465,7]
[342751268,1732102235979,-500.0,0.00022465,7]
[342751269,1732102235990,-406.51,0.00022465,7]
[342751270,1732102235999,-572.8,0.00022465,7]
[342751271,1732102236008,-500.0,0.00022465,7]
[342751272,1732102236019,-582.79,0.00022465,7]
[342751273,1732102236028,-500.0,0.00022465,7]
[342751274,1732102236036,-410.37,0.00022465,7]
[342751275,1732102236045,-1000.0,0.00022566,2]
[342751276,1732102236055,-500.0,0.00022739,7]
[342751277,1732102236064,-500.0,0.00022739,7]
[342751278,1732102236073,-500.0,0.00022739,7]
[342751279,1732102236082,-500.0,0.00022739,7]
[342751280,1732102236091,-500.0,0.00023013,7]
[342751281,1732102236100,-300.0,0.00023013,7]
[342751282,1732102236108,-489.88,0.00023013,7]
[342751283,1732102236118,-500.0,0.00023013,7]
[342751284,1732102236126,-500.0,0.00023287,2]
[342751285,1732102236135,-500.0,0.00023287,7]
[342751286,1732102236144,-500.0,0.00023287,7]
[342751287,1732102236153,-156.497,0.00023431,3]
[342751288,1732102236162,-500.0,0.00023561,7]
[342751289,1732102236172,-500.0,0.00023561,7]
[342751290,1732102236181,-5967.32892876,0.00023652,2]
[342751291,1732102236190,-500.0,0.00023835,7]
[342751292,1732102236199,-500.0,0.00023835,7]
[342751293,1732102236208,-530.0,0.00023918,2]
[342751294,1732102236217,-558.131,0.00023918,2]
[342751295,1732102236226,-589.13,0.00024,2]
[342751296,1732102236235,-500.0,0.00024109,7]
[342751297,1732102236244,-500.0,0.00024109,7]
[342751298,1732102236254,-500.0,0.00024383,7]
[342751299,1732102236263,-500.0,0.00024383,7]
[342751300,1732102236272,-5967.32892876,0.0002462,2]
[342751301,1732102236282,-500.0,0.00024657,3]
[342751302,1732102236291,-500.0,0.00024657,7]
[342751303,1732102236300,-500.0,0.00024657,7]
[342751304,1732102236310,-500.0,0.00024931,7]
[342751305,1732102236320,-500.0,0.00024931,7]
[342751306,1732102236331,-500.0,0.00025205,7]
[342751307,1732102236340,-500.0,0.00025205,7]
[342751308,1732102236350,-500.0,0.00025305,7]
[342751309,1732102236360,-500.0,0.00025479,7]
[342751310,1732102236369,-500.0,0.00025479,7]
[342751311,1732102236378,-5967.32892876,0.00025587,2]
[342751312,1732102236388,-500.0,0.00025753,7]
[342751313,1732102236398,-156.0,0.00025753,7]
[342751314,1732102236407,-500.0,0.00026027,4]
[342751315,1732102236417,-150.112233,0.000265,19]
[342751316,1732102236427,-646.6992,0.00026552,15]
[342751317,1732102236436,-5967.32892876,0.00026555,2]
[342751318,1732102236445,-474.51926757,0.00026792,10]
[342751319,1732102236454,-164.20898,0.00026921,2]
[342751320,1732102236463,-500.0,0.00026949,7]
[342751321,1732102236472,-174.0,0.00027,2]
[342751322,1732102236481,-300.0,0.000271,2]
[342751323,1732102236491,-150.112233,0.000272,10]
[342751324,1732102236500,-500.0,0.00027397,5]
[342751325,1732102236509,-309.86942872,0.00027397,2]
[342751326,1732102236520,-6250.0,0.00027397,120]
[342751327,1732102236528,-5967.32892876,0.00027522,2]
[342751328,1732102236537,-174.0,0.00027671,2]
[342751329,1732102236547,-5000.0,0.00027684,30]
[342751330,1732102236556,-150.112233,0.000279,20]
[342751331,1732102236565,-300.0,0.000281,2]
[342751332,1732102236574,-1000.0,0.00028392,2]
[342751333,1732102236583,-1000.0,0.00028422,2]
[342751334,1732102236593,-1000.0,0.00028426,2]
[342751335,1732102236601,-1000.0,0.00028469,2]
[342751336,1732102236611,-9651.8390233,0.00028482,2]
[342751337,1732102236620,-5967.32892876,0.0002849,2]
[342751338,1732102236630,-250000.0,0.00028492,2]
[342751339,1732102236639,-330.0,0.00028492,2]
[342751340,1732102236648,-2000.0,0.000285,10]
[342751341,1732102236658,-2000.0,0.000285,30]
[342751342,1732102236667,-500000.0,0.0002855,10]
[342751343,1732102236677,-500.0,0.00028573,5]
[342751344,1732102236687,-151.839612,0.00028574,7]
[342751345,1732102236696,-151.0,0.00028574,7]
[342751346,1732102236705,-151.0,0.00028574,7]
[342751347,1732102236714,-1000.0,0.00028578,2]
[342751348,1732102236723,-151.0,0.0002859,7]
[342751349,1732102236733,-151.0,0.0002859,7]
[342751350,1732102236742,-151.0,0.0002859,7]
[342751351,1732102236751,-151.0,0.0002859,7]
[342751352,1732102236760,-151.0,0.0002859,7]
[342751353,1732102236771,-151.0,0.0002859,7]
[342751354,1732102236780,-151.0,0.0002859,7]
[342751355,1732102236790,-151.0,0.0002859,7]
[342751356,1732102236799,-195.521251,0.0002859,7]
[342751357,1732102236808,-153.560132,0.0002859,7]
[342751358,1732102236817,-151.0,0.0002859,7]
[342751359,1732102236827,-185.561658,0.0002859,7]
[342751360,1732102236836,-151.0,0.00028592,7]
[342751361,1732102236846,-239.341765,0.00028592,7]
[342751362,1732102236855,-2000.0,0.00028592,10]
[342751363,1732102236864,-500.0,0.00028593,7]
[342751364,1732102236874,-26062.1278167,0.00028593,2]
[342751365,1732102236883,-385.28167273,0.00028593,2]
[342751366,1732102236893,-2334792.34383383,0.00028594,10]
[342751367,1732102236902,-1105259.45445869,0.00028594,10]
[342751388,1732102238815,-500.0,0.00021917,7]
[342751389,1732102238824,-500.0,0.00022191,7]
[342751390,1732102238834,-592.3,0.00026552,15]
[342751391,1732102238843,-6034.38207135,0.00028594,10]
[342751392,1732102238855,-46572.10423876,0.00028594,10]
[342751393,1732102238866,-588.26823525,0.00028594,10]
[342751394,1732102238892,-1000.92543282,0.00028594,10]
[342751421,1732102240482,-13793.65563354,0.00028594,10]
[342751446,1732102243481,-568.5249,0.00026552,15]
[342751447,1732102243492,-694.65441357,0.00028594,10]
[342751506,1732102918300,164.20898,0.00013973,2]
[342751539,1732103432791,-1053.138134,0.00020247,2]
[342751547,1732103438818,-1028.76301363,0.00020247,2]
[342751548,1732103438828,-355.96757554,0.00020347,2]
[342751549,1732103438840,-162.76650133,0.00020381,2]
[342751550,1732103438849,-415.49785684,0.00020381,2]
[342751551,1732103438859,-154.79634998,0.00020479,2]
[342751552,1732103438868,-170.41343624,0.00020479,2]
[342751553,1732103438878,-445.88007243,0.00020479,2]
[342751554,1732103438887,-300.0,0.00020479,2]
[342751555,1732103438896,-12416.34626057,0.0002048,2]
[342751556,1732103438908,-11589.96561652,0.0002048,2]
[342751560,1732103438956,-4684.97879688,0.0002048,2]
[342751597,1732103440648,-3544.86445725,0.0002048,2]
[342751599,1732103440659,-1427.63195803,0.0002048,2]
[342751622,1732103443668,-1615.19298301,0.0002048,2]
[342751623,1732103443681,-64872.01540152,0.0002048,2]
[342751652,1732103446779,-626.68295598,0.0002048,2]
[342751660,1732103582223,164.20898,0.00013973,2]
[342751661,1732103856395,41606.084533,0.0001,2]
[342751672,1732104330873,164.20898,0.00013973,2]
[342751761,1732104631888,-2061.67622625,0.00017902,2]
[342751767,1732104631942,-368.06205219,0.00017902,2]
[342751812,1732104637893,-2570.26172156,0.00017902,2]
[342751813,1732104637903,-3110.90861621,0.00018083,2]
[342751815,1732104637913,-265.869398,0.00018234,2]
[342751817,1732104637922,-2268.64731154,0.00018334,2]
[342751819,1732104637937,-1219.68690476,0.00018334,2]
[342751821,1732104637947,-371.04646,0.00018451,2]
[342751823,1732104637958,-371.04646,0.00019135,2]
[342751824,1732104637967,-300.0,0.00019199,2]
[342751826,1732104637977,-300.0,0.00019199,2]
[342751828,1732104637986,-5647.53076956,0.000192,2]
[342751829,1732104637995,-168.31954263,0.000192,2]
[342751831,1732104638004,-185.13779592,0.00019209,2]
[342751833,1732104638014,-168.31954261,0.00019288,2]
[342751834,1732104638023,-197.98,0.00019289,3]
[342751836,1732104638034,-593.95,0.00019289,3]
[342751838,1732104638043,-312.1160507,0.00019298,2]
[342751840,1732104638052,-160.93712919,0.00019298,2]
[342751841,1732104638061,-511.58189057,0.00019298,2]
[342751843,1732104638071,-195.16384262,0.00019299,2]
[342751845,1732104638082,-1816.90635608,0.00019299,2]
[342751847,1732104638096,-38734.26708397,0.00019299,2]
[342751849,1732104638115,-311.33143809,0.00019299,2]
[342751851,1732104638130,-76829.44251448,0.00019299,2]
[342751867,1732104641714,-522.82500179,0.00019299,2]
[342751883,1732104642881,-753.66719047,0.00019299,2]
[342751884,1732104642892,-520.0,0.00019299,2]
[342751896,1732104645814,-9351.00449845,0.00019299,2]
[342751898,1732105014141,164.20898,0.00013973,2]
[342751899,1732105129640,395.96,0.00010959,2]
[342751945,1732105757772,164.20898,0.00013973,2]
[342751975,1732105832050,-5000.0,0.00016809,2]
[342751976,1732105832062,-300.0,0.00017217,2]
[342751977,1732105832072,-53371.0,0.00017217,2]
[342751978,1732105832081,-500.0,0.00017218,2]
[342751979,1732105832091,-500.0,0.00017218,2]
[342751980,1732105832102,-500.0,0.00017218,2]
[342751981,1732105832113,-500.0,0.00017218,2]
[342751982,1732105832124,-500.0,0.00017218,2]
[342751983,1732105832138,-500.0,0.00017218,2]
[342751984,1732105832147,-500.0,0.00017218,2]
[342751985,1732105832158,-500.0,0.00017218,2]
[342751986,1732105832168,-500.0,0.00017218,2]
[342751987,1732105832177,-580.93800765,0.00017218,2]
[342751988,1732105832187,-500.0,0.00017218,2]
[342751989,1732105832196,-500.0,0.00017218,2]
[342751990,1732105832205,-500.0,0.00017218,2]
[342751991,1732105832214,-500.0,0.00017218,2]
[342751992,1732105832223,-500.0,0.00017218,2]
[342751993,1732105832233,-24900.0,0.00017219,2]
[342751994,1732105832243,-186.341691,0.00017499,2]
[342751995,1732105832252,-245.23170342,0.00018129,2]
[342751996,1732105832261,-226.35155887,0.0001815,2]
[342751997,1732105832270,-186.341691,0.00018184,2]
[342751998,1732105832280,-186.341691,0.00018869,2]
[342751999,1732105832290,-245.23170342,0.00019051,2]
[342752000,1732105832302,-4002.0597807,0.00019702,2]
[342752001,1732105832312,-245.23170342,0.00019973,2]
[342752002,1732105832322,-3503.64978128,0.0002048,2]
[342752003,1732105832332,-245.23170342,0.00020895,2]
[342752004,1732105832342,-156.88546195,0.00021816,2]
[342752005,1732105832351,-218.48123549,0.00021816,2]
[342752006,1732105832361,-182.62930696,0.00021816,2]
[342752007,1732105832371,-87912.5360164,0.00021817,2]
[342752044,1732105838221,-303.4075339,0.00017217,2]
[342752046,1732105838230,-500.0,0.00017217,2]
[342752048,1732105838239,-170.8263531,0.00017217,2]
[342752050,1732105838249,-152.60671119,0.00017217,2]
[342752052,1732105838259,-500.0,0.00017217,2]
[342752054,1732105838268,-500.0,0.00017217,2]
[342752056,1732105838278,-500.0,0.00017217,2]
[342752058,1732105838287,-500.0,0.00017217,2]
[342752060,1732105838296,-155.84567711,0.00017217,2]
[342752062,1732105838306,-342.3264453,0.00017217,2]
[342752064,1732105838315,-500.0,0.00017217,2]
[342752066,1732105838325,-500.0,0.00017217,2]
[342752068,1732105838334,-500.0,0.00017217,2]
[342752070,1732105838344,-500.0,0.00017217,2]
[342752071,1732105838353,-500.0,0.00017217,2]
[342752073,1732105838363,-500.0,0.00017217,2]
[342752076,1732105838372,-500.0,0.00017217,2]
[342752077,1732105838381,-500.0,0.00017217,2]
[342752079,1732105838390,-500.0,0.00017217,2]
[342752081,1732105838400,-500.0,0.00017217,2]
[342752082,1732105838408,-500.0,0.00017217,2]
[342752083,1732105838417,-500.0,0.00017217,2]
[342752084,1732105838427,-500.0,0.00017217,2]
[342752085,1732105838437,-500.0,0.00017217,2]
[342752086,1732105838447,-500.0,0.00017217,2]
[342752087,1732105838456,-500.0,0.00017217,2]
[342752088,1732105838466,-500.0,0.00017217,2]
[342752089,1732105838475,-500.0,0.00017217,2]
[342752090,1732105838484,-500.0,0.00017217,2]
[342752091,1732105838493,-500.0,0.00017217,2]
[342752092,1732105838503,-529.14146491,0.00017217,2]
[342752093,1732105838512,-500.0,0.00017217,2]
[342752094,1732105838521,-500.0,0.00017217,2]
[342752095,1732105838530,-500.0,0.00017217,2]
[342752096,1732105838539,-500.0,0.00017217,2]
[342752097,1732105838549,-500.0,0.00017217,2]
[342752098,1732105838560,-500.0,0.00017217,2]
[342752099,1732105838569,-500.0,0.00017217,2]
[342752100,1732105838579,-500.0,0.00017217,2]
[342752101,1732105838589,-500.0,0.00017217,2]
[342752102,1732105838598,-500.0,0.00017217,2]
[342752103,1732105838608,-500.0,0.00017217,2]
[342752104,1732105838617,-27127.34581449,0.00021817,2]
[342752105,1732105838633,-4024.35375145,0.00021817,2]
[342752106,1732105838645,-20018.24493186,0.00021817,2]
[342752124,1732105839903,-2167.75264294,0.00021817,2]
[342752151,1732105843056,-89934.2997,0.00021817,2]
[342752154,1732105845968,-3334.48460565,0.00021817,2]
[342752174,1732106403249,164.20898,0.00013973,2]
[342752227,1732107032134,-341.72410827,0.0002067,2]
[342752228,1732107032146,-2771.45158193,0.0002067,2]
[342752229,1732107032155,-627.55830157,0.00020792,2]
[342752230,1732107032164,-8068.8492478,0.00020816,2]
[342752231,1732107032173,-245.23170342,0.00021717,2]
[342752232,1732107032182,-4941.5894234,0.00021717,2]
[342752233,1732107032191,-1000.90501117,0.00021816,2]
[342752234,1732107032200,-500.0,0.00021816,2]
[342752235,1732107032209,-500.0,0.00021816,2]
[342752236,1732107032219,-324.80716143,0.00021816,2]
[342752237,1732107032228,-500.0,0.00021816,2]
[342752238,1732107032237,-500.0,0.00021816,2]
[342752239,1732107032246,-500.0,0.00021816,2]
[342752240,1732107032254,-500.0,0.00021816,2]
[342752241,1732107032263,-500.0,0.00021816,2]
[342752242,1732107032273,-555.82829299,0.00021816,2]
[342752243,1732107032281,-500.0,0.00021816,2]
[342752244,1732107032293,-152.93686484,0.00021816,2]
[342752245,1732107032302,-1961.46781843,0.00021816,2]
[342752246,1732107032312,-202.27168927,0.00021817,2]
[342752247,1732107032321,-90208.23751357,0.00021817,2]
[342752248,1732107032330,-61210.81997801,0.00021817,2]
[342752249,1732107032339,-308.786,0.00021817,2]
[342752250,1732107032349,-618.45540085,0.00021916,2]
[342752251,1732107032358,-500.0,0.00021917,7]
[342752252,1732107032367,-500.0,0.00021917,7]
[342752253,1732107032376,-500.0,0.00021917,7]
[342752254,1732107032385,-502.65638944,0.00021917,7]
[342752255,1732107032395,-500.0,0.00021917,7]
[342752256,1732107032403,-500.0,0.00021917,7]
[342752257,1732107032413,-500.0,0.00021917,7]
[342752258,1732107032423,-500.0,0.00021917,5]
[342752259,1732107032432,-500.0,0.00021917,7]
[342752260,1732107032442,-505.197647,0.00021917,7]
[342752261,1732107032451,-151.0,0.00021917,2]
[342752262,1732107032460,-200.896135,0.00021917,2]
[342752263,1732107032470,-500.0,0.00021917,7]
[342752264,1732107032482,-501.78210718,0.00021917,7]
[342752265,1732107032492,-307.76600452,0.00021917,7]
[342752266,1732107032501,-500.0,0.00021917,7]
[342752267,1732107032511,-166.20039571,0.00021917,7]
[342752268,1732107032520,-500.0,0.00021917,7]
[342752269,1732107032529,-506.50628866,0.00021917,7]
[342752270,1732107032543,-537.70534142,0.00021917,7]
[342752271,1732107032555,-500.0,0.00021917,7]
[342752272,1732107032565,-500.0,0.00021917,7]
[342752273,1732107032575,-500.0,0.00021917,7]
[342752274,1732107032584,-566.09161638,0.00021917,7]
[342752275,1732107032593,-500.0,0.00021917,7]
[342752276,1732107032602,-500.0,0.00021917,7]
[342752277,1732107032612,-500.0,0.00021917,7]
[342752278,1732107032622,-500.0,0.00021917,7]
[342752279,1732107032631,-514.72771561,0.00021917,7]
[342752280,1732107032640,-500.0,0.00021917,7]
[342752281,1732107032649,-500.0,0.00021917,7]
[342752282,1732107032658,-500.57155544,0.00021917,7]
[342752283,1732107032667,-500.0,0.00021917,7]
[342752284,1732107032677,-500.0,0.00021917,7]
[342752285,1732107032686,-500.0,0.00021917,7]
[342752286,1732107032695,-500.91881702,0.00021917,7]
[342752287,1732107032704,-500.0,0.00021917,7]
[342752288,1732107032713,-475.88148842,0.00021917,7]
[342752289,1732107032723,-500.0,0.00021917,7]
[342752290,1732107032731,-500.0,0.00021917,7]
[342752291,1732107032741,-501.83303491,0.00021917,7]
[342752292,1732107032750,-500.0,0.00021917,7]
[342752293,1732107032760,-599.81269185,0.00021917,7]
[342752294,1732107032769,-500.0,0.00021917,7]
[342752295,1732107032778,-500.0,0.00021917,7]
[342752296,1732107032791,-500.0,0.00021917,7]
[342752297,1732107032800,-505.20184171,0.00021917,7]
[342752298,1732107032809,-512.87445702,0.00021917,7]
[342752299,1732107032819,-506.84091497,0.00021917,7]
[342752300,1732107032828,-500.0,0.00021917,7]
[342752301,1732107032837,-614.290382,0.00021917,7]
[342752302,1732107032847,-500.0,0.00021917,7]
[342752303,1732107032856,-500.0,0.00021917,7]
[342752304,1732107032866,-500.0,0.00021917,7]
[342752305,1732107032875,-501.24857838,0.00021917,7]
[342752306,1732107032885,-501.84279085,0.00021917,7]
[342752307,1732107032895,-500.0,0.00021917,7]
[342752308,1732107032904,-500.0,0.00021917,7]
[342752309,1732107032913,-507.29679344,0.00021917,7]
[342752310,1732107032922,-500.0,0.00021917,7]
[342752311,1732107032932,-500.0,0.00021917,7]
[342752312,1732107032941,-151.0,0.00021917,2]
[342752313,1732107032950,-500.0,0.00021917,7]
[342752314,1732107032959,-549.6517723,0.00021917,7]
[342752315,1732107032969,-500.0,0.00021917,7]
[342752316,1732107032978,-500.0,0.00021917,7]
[342752317,1732107032988,-500.0,0.00021917,7]
[342752318,1732107032997,-509.19933229,0.00021917,7]
[342752319,1732107033006,-500.0,0.00021917,7]
[342752320,1732107033016,-500.0,0.00021917,7]
[342752321,1732107033025,-533.39570989,0.00021917,7]
[342752322,1732107033037,-623.95939952,0.00021917,7]
[342752323,1732107033047,-151.0,0.00021917,2]
[342752324,1732107033057,-165.459577,0.00021917,2]
[342752325,1732107033066,-505.59670376,0.00021917,7]
[342752326,1732107033077,-500.0,0.00021917,7]
[342752327,1732107033088,-622.40059116,0.00021917,7]
[342752328,1732107033098,-500.0,0.00021917,7]
[342752329,1732107033109,-151.0,0.00021917,2]
[342752330,1732107033119,-151.0,0.00021917,2]
[342752331,1732107033131,-500.0,0.00021917,7]
[342752332,1732107033142,-500.0,0.00021917,7]
[342752333,1732107033152,-568.00927089,0.00021917,7]
[342752334,1732107033162,-500.0,0.00021917,7]
[342752335,1732107033173,-156.76832393,0.00021917,7]
[342752336,1732107033183,-293.02001493,0.00021917,7]
[342752337,1732107033194,-500.0,0.00021917,7]
[342752338,1732107033204,-500.0,0.00021917,7]
[342752339,1732107033214,-500.0,0.00021917,7]
[342752340,1732107033223,-314.98939021,0.00021917,7]
[342752341,1732107033232,-501.24926621,0.00021917,7]
[342752342,1732107033242,-500.0,0.00021917,7]
[342752343,1732107033252,-500.0,0.00021917,7]
[342752344,1732107033261,-500.0,0.00021917,7]
[342752345,1732107033270,-501.63550969,0.00021917,7]
[342752346,1732107033279,-500.2881434,0.00021917,7]
[342752347,1732107033292,-516.82199806,0.00021917,7]
[342752348,1732107033302,-500.0,0.00021917,7]
[342752349,1732107033311,-507.77821758,0.00021917,7]
[342752350,1732107033321,-500.0,0.00021917,7]
[342752351,1732107033331,-505.46823406,0.00021917,7]
[342752352,1732107033340,-514.19320457,0.00021917,7]
[342752353,1732107033350,-500.0,0.00021917,7]
[342752354,1732107033359,-500.0,0.00021917,7]
[342752355,1732107033368,-355.34636228,0.00021917,7]
[342752356,1732107033378,-503.39371792,0.00021917,7]
[342752357,1732107033387,-500.56765395,0.00021917,7]
[342752358,1732107033397,-500.0,0.00021917,7]
[342752359,1732107033407,-195.71628952,0.00021917,7]
[342752360,1732107033416,-500.0,0.00021917,7]
[342752361,1732107033425,-500.0,0.00021917,7]
[342752362,1732107033434,-500.0,0.00021917,7]
[342752363,1732107033445,-500.0,0.00021917,7]
[342752364,1732107033455,-151.0,0.00021917,2]
[342752365,1732107033465,-151.0,0.00021917,2]
[342752366,1732107033475,-508.17325708,0.00021917,7]
[342752367,1732107033488,-151.0,0.00021917,2]
[342752368,1732107033499,-506.21576309,0.00021917,7]
[342752369,1732107033509,-503.09844197,0.00021917,7]
[342752370,1732107033520,-503.67207861,0.00021917,7]
[342752371,1732107033529,-503.93876817,0.00021917,7]
[342752372,1732107033541,-500.0,0.00021917,7]
[342752373,1732107033551,-500.0,0.00021917,7]
[342752374,1732107033562,-507.24734157,0.00021917,7]
[342752375,1732107033571,-151.0,0.00021917,2]
[342752376,1732107033582,-151.0,0.00021917,2]
[342752377,1732107033592,-151.0,0.00021917,2]
[342752378,1732107033601,-500.0,0.00021917,7]
[342752379,1732107033611,-224.16150991,0.00021917,7]
[342752380,1732107033621,-500.43142356,0.00021917,7]
[342752381,1732107033630,-213.250374,0.00021917,2]
[342752382,1732107033639,-500.0,0.00021917,7]
[342752383,1732107033649,-500.0,0.00021917,7]
[342752384,1732107033659,-500.0,0.00021917,7]
[342752385,1732107033669,-500.0,0.00021917,7]
[342752386,1732107033678,-500.0,0.00021917,7]
[342752387,1732107033688,-500.0,0.00021917,7]
[342752388,1732107033697,-500.0,0.00021917,7]
[342752389,1732107033708,-571.47717615,0.00021917,7]
[342752390,1732107033717,-500.0,0.00021917,7]
[342752391,1732107033727,-500.0,0.00021917,7]
[342752392,1732107033736,-500.0,0.00021917,7]
[342752393,1732107033746,-500.0,0.00021917,7]
[342752394,1732107033755,-500.0,0.00021917,7]
[342752395,1732107033764,-500.0,0.00021917,7]
[342752396,1732107033774,-548.56519413,0.00021917,7]
[342752397,1732107033786,-500.0,0.00021917,7]
[342752398,1732107033796,-500.0,0.00021917,7]
[342752399,1732107033805,-528.52015823,0.00021917,7]
[342752400,1732107033814,-500.0,0.00021917,7]
[342752401,1732107033824,-500.0,0.00021917,7]
[342752402,1732107033835,-500.0,0.00021917,7]
[342752403,1732107033845,-500.0,0.00021917,7]
[342752404,1732107033965,-500.0,0.00021917,7]
[342752405,1732107033975,-500.0,0.00021917,7]
[342752406,1732107033988,-566.90148136,0.00021917,7]
[342752407,1732107033998,-500.0,0.00021917,7]
[342752408,1732107034008,-500.0,0.00021917,7]
[342752409,1732107034018,-500.0,0.00021917,7]
[342752410,1732107034028,-500.0,0.00021917,7]
[342752411,1732107034040,-500.0,0.00021917,7]
[342752412,1732107034050,-500.0,0.00021917,7]
[342752413,1732107034061,-500.0,0.00021917,7]
[342752414,1732107034071,-584.1050032,0.00021917,7]
[342752415,1732107034082,-500.0,0.00021917,7]
[342752416,1732107034092,-500.0,0.00021917,7]
[342752417,1732107034102,-195.72997027,0.00021917,7]
[342752418,1732107034116,-617.93799901,0.00021917,7]
[342752419,1732107034126,-500.36090286,0.00021917,7]
[342752420,1732107034144,-500.0,0.00021917,7]
[342752421,1732107034154,-500.0,0.00021917,7]
[342752422,1732107034164,-500.0,0.00021917,7]
[342752423,1732107034173,-500.0,0.00021917,7]
[342752424,1732107034184,-500.0,0.00021917,7]
[342752425,1732107034194,-500.0,0.00021917,7]
[342752426,1732107034204,-500.0,0.00021917,7]
[342752427,1732107034214,-500.0,0.00021917,7]
[342752428,1732107034223,-500.0,0.00021917,7]
[342752429,1732107034233,-500.0,0.00021917,7]
[342752430,1732107034242,-500.0,0.00021917,7]
[342752431,1732107034252,-500.0,0.00021917,7]
[342752432,1732107034262,-500.0,0.00021917,7]
[342752433,1732107034273,-500.0,0.00021917,7]
[342752434,1732107034283,-500.0,0.00021917,7]